[Event "Titled Tuesday Blitz May 24 Early 2022"]
[White "Nilsen, Tobias Lang"]
[Black "Hambleton, Aman"]
[WhiteFideId "1521624"]
[BlackFideId "2606577"]
[WhiteElo "2014"]
[BlackElo "2552"]
[Result "1-0"]
[Round "04"]
[TimeControl "180+1"]
[Date "2022.05.25"]
[WhiteClock "0:01:39"]
[BlackClock "0:00:01"]

1. f4 {[%clk 0:03:00]}  Nh6 {[%clk 0:02:57]} 2. e4 {[%clk 0:02:57]}  d5 {[%clk 0:02:57]} 3. Nc3 {[%clk 0:02:54]}  dxe4 {[%clk 0:02:53]} 4. Nxe4 {[%clk 0:02:54]}  Nc6 {[%clk 0:02:54]} 5. Nf3 {[%clk 0:02:54]}  Bf5 {[%clk 0:02:47]} 6. Ng3 {[%clk 0:02:43]}  e6 {[%clk 0:02:40]} 7. Bb5 {[%clk 0:02:41]}  Qd5 {[%clk 0:02:39]} 8. c4 {[%clk 0:02:38]}  Qd6 {[%clk 0:02:23]} 9. Ne5 {[%clk 0:02:28]}  a6 {[%clk 0:01:59]} 10. Qa4 {[%clk 0:02:20]}  Bc2 {[%clk 0:01:14]} 11. Bxc6+ {[%clk 0:02:19]}  bxc6 {[%clk 0:01:13]} 12. Qxc2 {[%clk 0:02:19]}  f6 {[%clk 0:01:06]} 13. Nf3 {[%clk 0:02:15]}  Qxf4 {[%clk 0:01:04]} 14. d4 {[%clk 0:02:14]}  Bb4+ {[%clk 0:01:02]} 15. Bd2 {[%clk 0:02:13]}  Qe3+ {[%clk 0:00:47]} 16. Ne2 {[%clk 0:02:04]}  Ng4 {[%clk 0:00:31]} 17. Rf1 {[%clk 0:02:03]}  Rb8 {[%clk 0:00:25]} 18. b3 {[%clk 0:01:56]}  Bxd2+ {[%clk 0:00:16]} 19. Qxd2 {[%clk 0:01:56]}  Qe4 {[%clk 0:00:17]} 20. Qf4 {[%clk 0:01:46]}  Qxf4 {[%clk 0:00:02]} 21. Nxf4 {[%clk 0:01:45]}  g5 {[%clk 0:00:02]} 22. Nxe6 {[%clk 0:01:45]}  Kf7 {[%clk 0:00:01]} 23. Nc5 {[%clk 0:01:41]}  Rhe8+ {[%clk 0:00:01]} 24. Kd2 {[%clk 0:01:42]}  Ne3 {[%clk 0:00:01]} 25. Ne5+ {[%clk 0:01:39]} 1-0


[Site "https://www.chess.com"]

[Event "Titled Tuesday Blitz May 24 Early 2022"]
[White "Nugumanov, Bakhtiyar"]
[Black "Kvaloy, Aksel Bu"]
[WhiteFideId "13701797"]
[BlackFideId "1528815"]
[WhiteElo "2262"]
[BlackElo "2053"]
[Result "1-0"]
[Round "04"]
[TimeControl "180+1"]
[Date "2022.05.25"]
[WhiteClock "0:00:11"]
[BlackClock "0:00:46"]

1. Nf3 {[%clk 0:03:00]}  d5 {[%clk 0:02:50]} 2. g3 {[%clk 0:03:00]}  Nd7 {[%clk 0:02:46]} 3. d4 {[%clk 0:02:59]}  Nb6 {[%clk 0:02:41]} 4. Bg2 {[%clk 0:02:57]}  Nf6 {[%clk 0:02:38]} 5. O-O {[%clk 0:02:56]}  Bf5 {[%clk 0:02:38]} 6. Ne5 {[%clk 0:02:43]}  e6 {[%clk 0:02:38]} 7. c4 {[%clk 0:02:43]}  c6 {[%clk 0:02:34]} 8. Nc3 {[%clk 0:02:33]}  Bd6 {[%clk 0:02:28]} 9. b3 {[%clk 0:02:20]}  Be7 {[%clk 0:02:24]} 10. a4 {[%clk 0:02:11]}  a5 {[%clk 0:02:22]} 11. f3 {[%clk 0:01:36]}  O-O {[%clk 0:02:07]} 12. e4 {[%clk 0:01:25]}  dxe4 {[%clk 0:02:07]} 13. fxe4 {[%clk 0:01:26]}  Bg6 {[%clk 0:02:06]} 14. Kh1 {[%clk 0:01:16]}  c5 {[%clk 0:01:39]} 15. d5 {[%clk 0:01:10]}  Nbd7 {[%clk 0:01:33]} 16. Nxg6 {[%clk 0:01:07]}  hxg6 {[%clk 0:01:34]} 17. d6 {[%clk 0:01:07]}  Ne5 {[%clk 0:01:15]} 18. dxe7 {[%clk 0:01:07]}  Qxe7 {[%clk 0:01:14]} 19. Qe2 {[%clk 0:00:55]}  Nfd7 {[%clk 0:01:08]} 20. Bf4 {[%clk 0:00:49]}  g5 {[%clk 0:01:07]} 21. Be3 {[%clk 0:00:37]}  Rad8 {[%clk 0:01:02]} 22. Rad1 {[%clk 0:00:37]}  Nb8 {[%clk 0:01:01]} 23. Nb5 {[%clk 0:00:22]}  Nbc6 {[%clk 0:00:58]} 24. Rxd8 {[%clk 0:00:18]}  Rxd8 {[%clk 0:00:56]} 25. Rd1 {[%clk 0:00:19]}  f6 {[%clk 0:00:50]} 26. Rxd8+ {[%clk 0:00:14]}  Qxd8 {[%clk 0:00:51]} 27. Bxc5 {[%clk 0:00:14]}  b6 {[%clk 0:00:50]} 28. Bf2 {[%clk 0:00:12]}  Qe7 {[%clk 0:00:49]} 29. h3 {[%clk 0:00:12]}  Qb4 {[%clk 0:00:49]} 30. Qd1 {[%clk 0:00:11]}  Qc3 {[%clk 0:00:46]} 31. Nxc3 {[%clk 0:00:11]} 1-0


[Site "https://www.chess.com"]

[Event "Titled Tuesday Blitz May 24 Early 2022"]
[White "Odegov, Artem"]
[Black "Eynullayev, Atilla"]
[WhiteFideId "34183644"]
[BlackFideId "13413570"]
[WhiteElo "2286"]
[BlackElo "1936"]
[Result "1-0"]
[Round "04"]
[TimeControl "180+1"]
[Date "2022.05.25"]
[WhiteClock "0:00:17"]
[BlackClock "0:00:57"]

1. d4 {[%clk 0:02:52]}  Nf6 {[%clk 0:02:59]} 2. c4 {[%clk 0:02:51]}  e6 {[%clk 0:02:59]} 3. Nf3 {[%clk 0:02:51]}  d5 {[%clk 0:02:59]} 4. Nc3 {[%clk 0:02:51]}  c5 {[%clk 0:02:59]} 5. Bg5 {[%clk 0:02:49]}  cxd4 {[%clk 0:02:57]} 6. Nxd4 {[%clk 0:02:48]}  dxc4 {[%clk 0:02:57]} 7. e3 {[%clk 0:02:45]}  Bb4 {[%clk 0:02:46]} 8. Qa4+ {[%clk 0:02:25]}  Nc6 {[%clk 0:02:46]} 9. Nxc6 {[%clk 0:02:25]}  Bxc3+ {[%clk 0:02:46]} 10. bxc3 {[%clk 0:02:25]}  Qd7 {[%clk 0:02:32]} 11. Bxc4 {[%clk 0:02:13]}  bxc6 {[%clk 0:02:33]} 12. Rd1 {[%clk 0:02:12]}  Qb7 {[%clk 0:02:13]} 13. O-O {[%clk 0:01:27]}  O-O {[%clk 0:02:10]} 14. Bxf6 {[%clk 0:01:21]}  gxf6 {[%clk 0:02:10]} 15. Rd6 {[%clk 0:01:21]}  c5 {[%clk 0:01:46]} 16. Be2 {[%clk 0:00:59]}  Rb8 {[%clk 0:01:43]} 17. Qg4+ {[%clk 0:00:26]}  Kh8 {[%clk 0:01:42]} 18. Qh4 {[%clk 0:00:27]}  Kg7 {[%clk 0:01:19]} 19. Bd3 {[%clk 0:00:22]}  Rh8 {[%clk 0:01:00]} 20. Qg4+ {[%clk 0:00:18]}  Kf8 {[%clk 0:00:59]} 21. Rd8+ {[%clk 0:00:17]}  Ke7 {[%clk 0:00:57]} 22. Rxh8 {[%clk 0:00:17]} 1-0


[Site "https://www.chess.com"]

[Event "Titled Tuesday Blitz May 24 Early 2022"]
[White "Olafsson, Helgi"]
[Black "Keller, Peter"]
[WhiteFideId "2300010"]
[BlackFideId "1272105"]
[WhiteElo "2463"]
[BlackElo "2275"]
[Result "1-0"]
[Round "04"]
[TimeControl "180+1"]
[Date "2022.05.25"]
[WhiteClock "0:00:45"]
[BlackClock "0:00:17"]

1. Nf3 {[%clk 0:02:59]}  d5 {[%clk 0:02:53]} 2. g3 {[%clk 0:02:57]}  g6 {[%clk 0:02:51]} 3. Bg2 {[%clk 0:02:56]}  Bg7 {[%clk 0:02:48]} 4. O-O {[%clk 0:02:56]}  e5 {[%clk 0:02:48]} 5. c4 {[%clk 0:02:56]}  Ne7 {[%clk 0:02:27]} 6. cxd5 {[%clk 0:02:55]}  Nxd5 {[%clk 0:02:28]} 7. Nc3 {[%clk 0:02:54]}  O-O {[%clk 0:02:25]} 8. d4 {[%clk 0:02:46]}  exd4 {[%clk 0:02:15]} 9. Nxd4 {[%clk 0:02:45]}  Nxc3 {[%clk 0:02:16]} 10. bxc3 {[%clk 0:02:45]}  c6 {[%clk 0:02:14]} 11. Rb1 {[%clk 0:02:32]}  Qa5 {[%clk 0:02:04]} 12. Qb3 {[%clk 0:02:28]}  Nd7 {[%clk 0:02:00]} 13. Rd1 {[%clk 0:02:24]}  Nc5 {[%clk 0:01:54]} 14. Qb4 {[%clk 0:02:23]}  Qxb4 {[%clk 0:01:38]} 15. cxb4 {[%clk 0:02:16]}  Na4 {[%clk 0:01:39]} 16. Rb3 {[%clk 0:02:12]}  Rd8 {[%clk 0:01:32]} 17. e3 {[%clk 0:01:54]}  Be6 {[%clk 0:01:03]} 18. Rbd3 {[%clk 0:01:45]}  Bc4 {[%clk 0:00:49]} 19. Ra3 {[%clk 0:01:38]}  Nb6 {[%clk 0:00:46]} 20. Bf3 {[%clk 0:01:25]}  a6 {[%clk 0:00:39]} 21. Nb3 {[%clk 0:01:11]}  Rxd1+ {[%clk 0:00:37]} 22. Bxd1 {[%clk 0:01:11]}  Rd8 {[%clk 0:00:38]} 23. Bc2 {[%clk 0:01:08]}  Bd5 {[%clk 0:00:37]} 24. Nc5 {[%clk 0:01:06]}  Rb8 {[%clk 0:00:25]} 25. e4 {[%clk 0:01:04]}  Be6 {[%clk 0:00:23]} 26. Bf4 {[%clk 0:01:03]}  Rd8 {[%clk 0:00:21]} 27. Nxb7 {[%clk 0:00:59]}  Rd4 {[%clk 0:00:22]} 28. Rxa6 {[%clk 0:00:50]}  Rxb4 {[%clk 0:00:22]} 29. Nc5 {[%clk 0:00:49]}  Rb2 {[%clk 0:00:21]} 30. Bb3 {[%clk 0:00:47]}  Bxb3 {[%clk 0:00:20]} 31. axb3 {[%clk 0:00:46]}  Rc2 {[%clk 0:00:16]} 32. Rxb6 {[%clk 0:00:45]}  Rxc5 {[%clk 0:00:17]} 33. Rb8+ {[%clk 0:00:45]} 1-0


[Site "https://www.chess.com"]

[Event "Titled Tuesday Blitz May 24 Early 2022"]
[White "Onslow, Alfie"]
[Black "Golizadeh, Asghar"]
[WhiteFideId "436976"]
[BlackFideId "12505269"]
[WhiteElo "1885"]
[BlackElo "2403"]
[Result "0-1"]
[Round "04"]
[TimeControl "180+1"]
[Date "2022.05.25"]
[WhiteClock "0:00:03"]
[BlackClock "0:00:07"]

1. e4 {[%clk 0:02:59]}  c5 {[%clk 0:03:00]} 2. Nc3 {[%clk 0:02:57]}  g6 {[%clk 0:03:00]} 3. d4 {[%clk 0:02:57]}  cxd4 {[%clk 0:03:00]} 4. Qxd4 {[%clk 0:02:58]}  Nf6 {[%clk 0:03:01]} 5. e5 {[%clk 0:02:57]}  Nc6 {[%clk 0:03:01]} 6. Qf4 {[%clk 0:02:40]}  Nh5 {[%clk 0:02:57]} 7. Qe3 {[%clk 0:02:35]}  d5 {[%clk 0:02:48]} 8. exd6 {[%clk 0:02:27]}  Qxd6 {[%clk 0:02:47]} 9. Nf3 {[%clk 0:02:27]}  Bg7 {[%clk 0:02:46]} 10. Bd2 {[%clk 0:02:25]}  O-O {[%clk 0:02:42]} 11. O-O-O {[%clk 0:02:25]}  e5 {[%clk 0:02:22]} 12. Ne4 {[%clk 0:02:19]}  Qe7 {[%clk 0:02:19]} 13. h3 {[%clk 0:02:11]}  Be6 {[%clk 0:02:00]} 14. Kb1 {[%clk 0:02:11]}  f5 {[%clk 0:01:49]} 15. Nc5 {[%clk 0:02:06]}  Bf7 {[%clk 0:01:41]} 16. Qa3 {[%clk 0:01:47]}  b6 {[%clk 0:01:38]} 17. Bb5 {[%clk 0:01:42]}  Rac8 {[%clk 0:01:35]} 18. Nb3 {[%clk 0:01:25]}  Qxa3 {[%clk 0:01:33]} 19. bxa3 {[%clk 0:01:26]}  Nf4 {[%clk 0:00:57]} 20. Bxf4 {[%clk 0:01:24]}  exf4 {[%clk 0:00:58]} 21. Ng5 {[%clk 0:01:25]}  Ne5 {[%clk 0:00:51]} 22. Rhe1 {[%clk 0:01:16]}  h6 {[%clk 0:00:40]} 23. Nxf7 {[%clk 0:01:10]}  Rxf7 {[%clk 0:00:41]} 24. Rd6 {[%clk 0:00:44]}  Kh7 {[%clk 0:00:32]} 25. Nd2 {[%clk 0:00:30]}  Rc5 {[%clk 0:00:29]} 26. a4 {[%clk 0:00:29]}  Rfc7 {[%clk 0:00:20]} 27. Rc1 {[%clk 0:00:19]}  Nf7 {[%clk 0:00:18]} 28. Rd3 {[%clk 0:00:18]}  Ne5 {[%clk 0:00:17]} 29. Rd6 {[%clk 0:00:18]}  Rc3 {[%clk 0:00:15]} 30. Nb3 {[%clk 0:00:14]}  Nc4 {[%clk 0:00:11]} 31. Bxc4 {[%clk 0:00:15]}  R3xc4 {[%clk 0:00:12]} 32. a5 {[%clk 0:00:14]}  bxa5 {[%clk 0:00:12]} 33. a4 {[%clk 0:00:12]}  Rxa4 {[%clk 0:00:12]} 34. Re1 {[%clk 0:00:11]}  Rb7 {[%clk 0:00:12]} 35. Kc1 {[%clk 0:00:07]}  Bc3 {[%clk 0:00:10]} 36. Ree6 {[%clk 0:00:06]}  Rg7 {[%clk 0:00:06]} 37. Kd1 {[%clk 0:00:05]}  Ra2 {[%clk 0:00:05]} 38. Nc5 {[%clk 0:00:03]}  Bb4 {[%clk 0:00:05]} 39. Rc6 {[%clk 0:00:02]}  Bxc5 {[%clk 0:00:06]} 40. Rxc5 {[%clk 0:00:03]}  a4 {[%clk 0:00:06]} 41. Ra5 {[%clk 0:00:03]}  Rd7+ {[%clk 0:00:07]} 42. Kc1 {[%clk 0:00:03]}  a3 {[%clk 0:00:07]} 0-1


[Site "https://www.chess.com"]

[Event "Titled Tuesday Blitz May 24 Early 2022"]
[White "Oparin, Grigoriy"]
[Black "Vakhlamov, Igor L."]
[WhiteFideId "24125890"]
[BlackFideId "24126748"]
[WhiteElo "2665"]
[BlackElo "2401"]
[Result "1/2-1/2"]
[Round "04"]
[TimeControl "180+1"]
[Date "2022.05.24"]
[WhiteClock "0:00:32"]
[BlackClock "0:00:21"]

1. e4 {[%clk 0:03:00]}  c5 {[%clk 0:02:59]} 2. Nf3 {[%clk 0:03:01]}  Nc6 {[%clk 0:03:00]} 3. Nc3 {[%clk 0:03:01]}  g6 {[%clk 0:03:00]} 4. d4 {[%clk 0:03:01]}  cxd4 {[%clk 0:03:01]} 5. Nxd4 {[%clk 0:03:02]}  Bg7 {[%clk 0:03:01]} 6. Be3 {[%clk 0:03:02]}  Nf6 {[%clk 0:03:02]} 7. Bc4 {[%clk 0:03:02]}  O-O {[%clk 0:03:02]} 8. Bb3 {[%clk 0:03:02]}  a5 {[%clk 0:03:02]} 9. O-O {[%clk 0:02:57]}  Nxd4 {[%clk 0:03:02]} 10. Bxd4 {[%clk 0:02:56]}  d6 {[%clk 0:03:03]} 11. Qe2 {[%clk 0:02:48]}  Bd7 {[%clk 0:03:02]} 12. a4 {[%clk 0:02:49]}  Bc6 {[%clk 0:03:02]} 13. Rad1 {[%clk 0:02:49]}  Nd7 {[%clk 0:03:02]} 14. Bd5 {[%clk 0:02:38]}  Bxd4 {[%clk 0:02:59]} 15. Rxd4 {[%clk 0:02:39]}  Qb6 {[%clk 0:02:58]} 16. Rd3 {[%clk 0:02:29]}  Rac8 {[%clk 0:02:19]} 17. Rh3 {[%clk 0:02:24]}  Nf6 {[%clk 0:02:08]} 18. Bb3 {[%clk 0:02:23]}  Bd7 {[%clk 0:01:54]} 19. Rg3 {[%clk 0:02:18]}  Rc5 {[%clk 0:01:47]} 20. Nd5 {[%clk 0:02:11]}  Nxd5 {[%clk 0:01:43]} 21. exd5 {[%clk 0:02:12]}  Bf5 {[%clk 0:01:37]} 22. h4 {[%clk 0:02:04]}  Rfc8 {[%clk 0:01:33]} 23. Rc1 {[%clk 0:01:53]}  Qb4 {[%clk 0:01:19]} 24. Qxe7 {[%clk 0:01:45]}  Bxc2 {[%clk 0:01:16]} 25. Rxc2 {[%clk 0:01:37]}  Rxc2 {[%clk 0:01:17]} 26. Bxc2 {[%clk 0:01:37]}  Rxc2 {[%clk 0:01:17]} 27. h5 {[%clk 0:01:37]}  Rc1+ {[%clk 0:00:59]} 28. Kh2 {[%clk 0:01:37]}  Qf4 {[%clk 0:00:59]} 29. Qe3 {[%clk 0:01:19]}  Rc4 {[%clk 0:00:49]} 30. h6 {[%clk 0:01:10]}  Qxe3 {[%clk 0:00:42]} 31. Rxe3 {[%clk 0:01:11]}  Rh4+ {[%clk 0:00:42]} 32. Kg3 {[%clk 0:01:10]}  Rxh6 {[%clk 0:00:42]} 33. Rb3 {[%clk 0:01:11]}  Rh5 {[%clk 0:00:41]} 34. Rb5 {[%clk 0:01:06]}  Kg7 {[%clk 0:00:41]} 35. Rxa5 {[%clk 0:01:06]}  Rg5+ {[%clk 0:00:32]} 36. Kh2 {[%clk 0:01:01]}  Re5 {[%clk 0:00:26]} 37. Rb5 {[%clk 0:01:01]}  Re7 {[%clk 0:00:27]} 38. Rb6 {[%clk 0:00:58]}  Rd7 {[%clk 0:00:26]} 39. f4 {[%clk 0:00:58]}  Kf6 {[%clk 0:00:26]} 40. g4 {[%clk 0:00:58]}  h5 {[%clk 0:00:26]} 41. Kg3 {[%clk 0:00:59]}  hxg4 {[%clk 0:00:26]} 42. Kxg4 {[%clk 0:01:00]}  Ke7 {[%clk 0:00:26]} 43. b4 {[%clk 0:01:00]}  Kd8 {[%clk 0:00:26]} 44. Rb5 {[%clk 0:00:55]}  Kc7 {[%clk 0:00:24]} 45. Ra5 {[%clk 0:00:55]}  Kb8 {[%clk 0:00:25]} 46. Kg5 {[%clk 0:00:51]}  Re7 {[%clk 0:00:23]} 47. Rb5 {[%clk 0:00:43]}  Kc7 {[%clk 0:00:23]} 48. Kf6 {[%clk 0:00:36]}  Re4 {[%clk 0:00:23]} 49. Kxf7 {[%clk 0:00:35]}  Rxf4+ {[%clk 0:00:23]} 50. Kxg6 {[%clk 0:00:36]}  Rf1 {[%clk 0:00:21]} 51. Kg5 {[%clk 0:00:36]}  Rf2 {[%clk 0:00:21]} 52. Kg4 {[%clk 0:00:36]}  Rf1 {[%clk 0:00:21]} 53. Kg3 {[%clk 0:00:37]}  Rf5 {[%clk 0:00:21]} 54. Ra5 {[%clk 0:00:36]}  Kb8 {[%clk 0:00:21]} 55. Rb5 {[%clk 0:00:33]}  Kc7 {[%clk 0:00:21]} 56. Kg4 {[%clk 0:00:32]}  Rf1 {[%clk 0:00:21]} 57. Kg3 {[%clk 0:00:32]}  Rf5 {[%clk 0:00:21]} 1/2-1/2


[Site "https://www.chess.com"]

[Event "Titled Tuesday Blitz May 24 Early 2022"]
[White "Pham, Tran Gia Phuc"]
[Black "Vusatiuk, Vladimir"]
[WhiteFideId "12415669"]
[BlackFideId "14118610"]
[WhiteElo "1789"]
[BlackElo "2157"]
[Result "1-0"]
[Round "04"]
[TimeControl "180+1"]
[Date "2022.05.25"]
[WhiteClock "0:00:37"]
[BlackClock "0:00:04"]

1. e4 {[%clk 0:03:00]}  c5 {[%clk 0:03:00]} 2. Nc3 {[%clk 0:03:00]}  Nc6 {[%clk 0:02:59]} 3. Bb5 {[%clk 0:03:00]}  g6 {[%clk 0:02:59]} 4. Bxc6 {[%clk 0:03:00]}  bxc6 {[%clk 0:02:59]} 5. f4 {[%clk 0:03:00]}  Bg7 {[%clk 0:02:59]} 6. d3 {[%clk 0:03:00]}  f5 {[%clk 0:02:57]} 7. Nf3 {[%clk 0:03:00]}  d6 {[%clk 0:02:57]} 8. O-O {[%clk 0:02:59]}  Nh6 {[%clk 0:02:57]} 9. Qe2 {[%clk 0:02:59]}  O-O {[%clk 0:02:55]} 10. e5 {[%clk 0:02:59]}  Nf7 {[%clk 0:02:48]} 11. Kh1 {[%clk 0:02:56]}  Rb8 {[%clk 0:02:44]} 12. b3 {[%clk 0:02:55]}  g5 {[%clk 0:02:01]} 13. g3 {[%clk 0:02:35]}  g4 {[%clk 0:01:59]} 14. Nh4 {[%clk 0:02:28]}  dxe5 {[%clk 0:01:58]} 15. Bd2 {[%clk 0:02:25]}  exf4 {[%clk 0:01:53]} 16. gxf4 {[%clk 0:02:25]}  e5 {[%clk 0:01:25]} 17. Ng2 {[%clk 0:02:23]}  Re8 {[%clk 0:01:26]} 18. Rae1 {[%clk 0:02:22]}  Bd7 {[%clk 0:01:22]} 19. Qf2 {[%clk 0:02:22]}  exf4 {[%clk 0:01:06]} 20. Nxf4 {[%clk 0:02:21]}  Ne5 {[%clk 0:01:05]} 21. Qxc5 {[%clk 0:01:49]}  Nf3 {[%clk 0:00:55]} 22. Rxe8+ {[%clk 0:01:48]}  Bxe8 {[%clk 0:00:42]} 23. Be3 {[%clk 0:01:48]}  Qh4 {[%clk 0:00:29]} 24. Bg1 {[%clk 0:01:29]}  Bd4 {[%clk 0:00:29]} 25. Qc4+ {[%clk 0:01:27]}  Bf7 {[%clk 0:00:30]} 26. Qxd4 {[%clk 0:01:17]}  Nxd4 {[%clk 0:00:27]} 27. Bxd4 {[%clk 0:01:16]}  Re8 {[%clk 0:00:20]} 28. Ng2 {[%clk 0:01:10]}  Qh3 {[%clk 0:00:18]} 29. Rxf5 {[%clk 0:01:07]}  Bg6 {[%clk 0:00:13]} 30. Rf1 {[%clk 0:01:06]}  g3 {[%clk 0:00:14]} 31. Bg1 {[%clk 0:01:04]}  Rf8 {[%clk 0:00:12]} 32. Re1 {[%clk 0:00:57]}  Bh5 {[%clk 0:00:10]} 33. Re5 {[%clk 0:00:40]}  Bf3 {[%clk 0:00:07]} 34. Rg5+ {[%clk 0:00:39]}  Kh8 {[%clk 0:00:08]} 35. Bd4+ {[%clk 0:00:37]}  Rf6 {[%clk 0:00:04]} 36. Bxf6# {[%clk 0:00:37]} 1-0


[Site "https://www.chess.com"]

[Event "Titled Tuesday Blitz May 24 Early 2022"]
[White "Piliczewski, Bogusz"]
[Black "Galiana Fernandez, Adrian"]
[WhiteFideId "1104144"]
[BlackFideId "32010150"]
[WhiteElo "1896"]
[BlackElo "2133"]
[Result "0-1"]
[Round "04"]
[TimeControl "180+1"]
[Date "2022.05.25"]
[WhiteClock "0:00:03"]
[BlackClock "0:00:09"]

1. d4 {[%clk 0:02:57]}  Nf6 {[%clk 0:02:57]} 2. Nf3 {[%clk 0:02:56]}  g6 {[%clk 0:02:57]} 3. Bf4 {[%clk 0:02:56]}  Bg7 {[%clk 0:02:57]} 4. e3 {[%clk 0:02:57]}  d6 {[%clk 0:02:55]} 5. h3 {[%clk 0:02:57]}  O-O {[%clk 0:02:55]} 6. Be2 {[%clk 0:02:57]}  c5 {[%clk 0:02:51]} 7. O-O {[%clk 0:02:57]}  Qb6 {[%clk 0:02:49]} 8. Qc1 {[%clk 0:02:54]}  Nc6 {[%clk 0:02:21]} 9. c3 {[%clk 0:02:53]}  Bf5 {[%clk 0:02:17]} 10. Nbd2 {[%clk 0:02:53]}  cxd4 {[%clk 0:02:11]} 11. exd4 {[%clk 0:02:47]}  Rfc8 {[%clk 0:02:10]} 12. Nc4 {[%clk 0:02:43]}  Qd8 {[%clk 0:02:08]} 13. Ne3 {[%clk 0:02:25]}  Be6 {[%clk 0:02:04]} 14. Qd1 {[%clk 0:02:21]}  Nd5 {[%clk 0:01:40]} 15. Bh2 {[%clk 0:02:20]}  Qb6 {[%clk 0:01:28]} 16. Rb1 {[%clk 0:02:09]}  a5 {[%clk 0:01:25]} 17. c4 {[%clk 0:01:50]}  Nxe3 {[%clk 0:01:23]} 18. fxe3 {[%clk 0:01:50]}  Bf5 {[%clk 0:01:22]} 19. Bd3 {[%clk 0:01:49]}  Bxd3 {[%clk 0:01:20]} 20. Qxd3 {[%clk 0:01:48]}  Nb4 {[%clk 0:01:16]} 21. Qa3 {[%clk 0:01:04]}  Rxc4 {[%clk 0:01:12]} 22. Rfc1 {[%clk 0:00:50]}  Rac8 {[%clk 0:01:08]} 23. b3 {[%clk 0:00:47]}  Rc2 {[%clk 0:00:51]} 24. Ne1 {[%clk 0:00:40]}  R2c3 {[%clk 0:00:41]} 25. Kh1 {[%clk 0:00:19]}  Bh6 {[%clk 0:00:38]} 26. Bg1 {[%clk 0:00:18]}  Qc6 {[%clk 0:00:23]} 27. Rxc3 {[%clk 0:00:13]}  Qxc3 {[%clk 0:00:22]} 28. Qxa5 {[%clk 0:00:12]}  Na6 {[%clk 0:00:11]} 29. Qxc3 {[%clk 0:00:12]}  Rxc3 {[%clk 0:00:12]} 30. Bf2 {[%clk 0:00:09]}  Bxe3 {[%clk 0:00:11]} 31. Bxe3 {[%clk 0:00:08]}  Rxe3 {[%clk 0:00:11]} 32. Nf3 {[%clk 0:00:08]}  Re2 {[%clk 0:00:11]} 33. a3 {[%clk 0:00:07]}  Ra2 {[%clk 0:00:10]} 34. a4 {[%clk 0:00:06]}  Nb4 {[%clk 0:00:10]} 35. Re1 {[%clk 0:00:05]}  e6 {[%clk 0:00:09]} 36. Rc1 {[%clk 0:00:03]}  Rb2 {[%clk 0:00:09]} 0-1


[Site "https://www.chess.com"]

[Event "Titled Tuesday Blitz May 24 Early 2022"]
[White "Poltorak, Sebastian"]
[Black "Bryakin, Mikhail"]
[WhiteFideId "1199498"]
[BlackFideId "4165314"]
[WhiteElo "2066"]
[BlackElo "2417"]
[Result "0-1"]
[Round "04"]
[TimeControl "180+1"]
[Date "2022.05.24"]
[WhiteClock "0:00:48"]
[BlackClock "0:02:20"]

1. d4 {[%clk 0:03:00]}  Nf6 {[%clk 0:02:56]} 2. c4 {[%clk 0:03:00]}  e5 {[%clk 0:02:56]} 3. dxe5 {[%clk 0:02:58]}  Ng4 {[%clk 0:02:56]} 4. e3 {[%clk 0:02:58]}  Nxe5 {[%clk 0:02:56]} 5. f4 {[%clk 0:02:58]}  Nec6 {[%clk 0:02:54]} 6. Nf3 {[%clk 0:02:57]}  Bb4+ {[%clk 0:02:55]} 7. Bd2 {[%clk 0:02:56]}  Qe7 {[%clk 0:02:54]} 8. Qb3 {[%clk 0:02:50]}  Bxd2+ {[%clk 0:02:53]} 9. Nbxd2 {[%clk 0:02:50]}  Na6 {[%clk 0:02:54]} 10. O-O-O {[%clk 0:02:29]}  b6 {[%clk 0:02:54]} 11. g3 {[%clk 0:02:06]}  Bb7 {[%clk 0:02:54]} 12. Bg2 {[%clk 0:02:06]}  O-O-O {[%clk 0:02:54]} 13. Rhe1 {[%clk 0:02:06]}  Nc5 {[%clk 0:02:55]} 14. Qc2 {[%clk 0:02:06]}  Nb4 {[%clk 0:02:55]} 15. Qf5 {[%clk 0:01:51]}  g6 {[%clk 0:02:53]} 16. Qg5 {[%clk 0:01:48]}  Nbd3+ {[%clk 0:02:50]} 17. Kc2 {[%clk 0:01:47]}  f6 {[%clk 0:02:50]} 18. Qh6 {[%clk 0:01:43]}  Nxe1+ {[%clk 0:02:49]} 19. Rxe1 {[%clk 0:01:44]}  Ne4 {[%clk 0:02:48]} 20. Nd4 {[%clk 0:01:35]}  Nxd2 {[%clk 0:02:36]} 21. Bxb7+ {[%clk 0:01:35]}  Kxb7 {[%clk 0:02:37]} 22. Kxd2 {[%clk 0:01:36]}  c5 {[%clk 0:02:37]} 23. Nb3 {[%clk 0:01:19]}  d5 {[%clk 0:02:37]} 24. cxd5 {[%clk 0:01:20]}  Rxd5+ {[%clk 0:02:37]} 25. Kc1 {[%clk 0:01:21]}  Rhd8 {[%clk 0:02:34]} 26. e4 {[%clk 0:01:15]}  Rd3 {[%clk 0:02:34]} 27. Qh3 {[%clk 0:00:59]}  c4 {[%clk 0:02:28]} 28. Na1 {[%clk 0:01:00]}  Qb4 {[%clk 0:02:21]} 29. Nc2 {[%clk 0:00:47]}  Qd2+ {[%clk 0:02:19]} 30. Kb1 {[%clk 0:00:48]}  Qd1+ {[%clk 0:02:19]} 31. Rxd1 {[%clk 0:00:48]}  Rxd1# {[%clk 0:02:20]} 0-1


[Site "https://www.chess.com"]